[Event "Titled Tuesday Blitz February 21 Late 2023"]
[White "Michalski, Olaf"]
[Black "Chabris, Christopher"]
[WhiteFideId "1106740"]
[BlackFideId "2005263"]
[WhiteElo "2273"]
[BlackElo "2053"]
[Result "1-0"]
[Round "07"]
[TimeControl "180+2"]
[Date "2023.02.21"]
[WhiteClock "0:00:01"]
[BlackClock "0:00:06"]

1. d4 {[%clk 0:03:00]}  Nf6 {[%clk 0:02:59]} 2. c4 {[%clk 0:03:00]}  e6 {[%clk 0:02:59]} 3. Nf3 {[%clk 0:02:58]}  Bb4+ {[%clk 0:02:59]} 4. Nbd2 {[%clk 0:02:58]}  O-O {[%clk 0:02:55]} 5. e3 {[%clk 0:02:58]}  d5 {[%clk 0:02:50]} 6. a3 {[%clk 0:02:42]}  Bxd2+ {[%clk 0:02:44]} 7. Bxd2 {[%clk 0:02:37]}  b6 {[%clk 0:02:44]} 8. Bd3 {[%clk 0:02:28]}  Bb7 {[%clk 0:02:44]} 9. O-O {[%clk 0:02:13]}  Nbd7 {[%clk 0:02:44]} 10. Qc2 {[%clk 0:02:06]}  c5 {[%clk 0:02:37]} 11. cxd5 {[%clk 0:01:38]}  exd5 {[%clk 0:02:36]} 12. Rfd1 {[%clk 0:01:22]}  Re8 {[%clk 0:02:06]} 13. Rac1 {[%clk 0:01:09]}  c4 {[%clk 0:02:01]} 14. Bf5 {[%clk 0:01:08]}  g6 {[%clk 0:01:59]} 15. Bh3 {[%clk 0:01:06]}  Ne4 {[%clk 0:01:52]} 16. Be1 {[%clk 0:01:04]}  f5 {[%clk 0:01:43]} 17. b3 {[%clk 0:00:53]}  b5 {[%clk 0:01:37]} 18. bxc4 {[%clk 0:00:53]}  bxc4 {[%clk 0:01:33]} 19. Qa4 {[%clk 0:00:48]}  Qc7 {[%clk 0:01:15]} 20. Rb1 {[%clk 0:00:24]}  Bc6 {[%clk 0:01:13]} 21. Qa6 {[%clk 0:00:19]}  c3 {[%clk 0:01:00]} 22. Rdc1 {[%clk 0:00:19]}  Rab8 {[%clk 0:00:50]} 23. Rxb8 {[%clk 0:00:13]}  Rxb8 {[%clk 0:00:49]} 24. g4 {[%clk 0:00:07]}  Rb6 {[%clk 0:00:39]} 25. Qa5 {[%clk 0:00:04]}  Qb7 {[%clk 0:00:17]} 26. gxf5 {[%clk 0:00:03]}  Rb1 {[%clk 0:00:12]} 27. Rxb1 {[%clk 0:00:03]}  Qxb1 {[%clk 0:00:11]} 28. Qd8+ {[%clk 0:00:03]}  Nf8 {[%clk 0:00:11]} 29. fxg6 {[%clk 0:00:02]}  hxg6 {[%clk 0:00:10]} 30. Be6+ {[%clk 0:00:01]}  Kg7 {[%clk 0:00:08]} 31. Qe7+ {[%clk 0:00:02]}  Kh6 {[%clk 0:00:07]} 32. Qxf8+ {[%clk 0:00:02]}  Kh5 {[%clk 0:00:06]} 33. Qh8# {[%clk 0:00:01]} 1-0


[Site "https://www.chess.com"]

[Event "Titled Tuesday Blitz February 21 Late 2023"]
[White "Paravyan, David"]
[Black "Tabatabaei, M. Amin"]
[WhiteFideId "4194985"]
[BlackFideId "12521213"]
[WhiteElo "2601"]
[BlackElo "2677"]
[Result "0-1"]
[Round "08"]
[TimeControl "180+2"]
[Date "2023.02.21"]
[WhiteClock "0:00:05"]
[BlackClock "0:00:13"]

1. e4 {[%clk 0:03:00]}  c6 {[%clk 0:03:00]} 2. d4 {[%clk 0:03:00]}  d5 {[%clk 0:03:00]} 3. e5 {[%clk 0:03:00]}  Bf5 {[%clk 0:02:59]} 4. Nf3 {[%clk 0:03:00]}  e6 {[%clk 0:02:59]} 5. Be2 {[%clk 0:03:00]}  Bb4+ {[%clk 0:02:54]} 6. Nbd2 {[%clk 0:02:59]}  Ba5 {[%clk 0:02:48]} 7. O-O {[%clk 0:02:59]}  Nd7 {[%clk 0:02:47]} 8. Nb3 {[%clk 0:02:59]}  Bc7 {[%clk 0:02:47]} 9. Be3 {[%clk 0:02:56]}  f6 {[%clk 0:02:45]} 10. Nh4 {[%clk 0:02:52]}  fxe5 {[%clk 0:02:44]} 11. Nxf5 {[%clk 0:02:52]}  exf5 {[%clk 0:02:45]} 12. dxe5 {[%clk 0:02:52]}  Bxe5 {[%clk 0:02:40]} 13. c4 {[%clk 0:02:48]}  Ngf6 {[%clk 0:02:38]} 14. cxd5 {[%clk 0:02:48]}  Nxd5 {[%clk 0:02:36]} 15. Bc4 {[%clk 0:02:47]}  Qh4 {[%clk 0:02:23]} 16. Re1 {[%clk 0:02:10]}  Bxh2+ {[%clk 0:02:11]} 17. Kh1 {[%clk 0:02:02]}  Bf4+ {[%clk 0:01:41]} 18. Kg1 {[%clk 0:02:03]}  Bxe3 {[%clk 0:01:41]} 19. Qc2 {[%clk 0:01:24]}  O-O-O {[%clk 0:01:06]} 20. Bxd5 {[%clk 0:01:15]}  Bxf2+ {[%clk 0:00:48]} 21. Qxf2 {[%clk 0:01:16]}  Qxf2+ {[%clk 0:00:49]} 22. Kxf2 {[%clk 0:01:17]}  cxd5 {[%clk 0:00:50]} 23. Rac1+ {[%clk 0:01:16]}  Kb8 {[%clk 0:00:50]} 24. Re7 {[%clk 0:01:17]}  g6 {[%clk 0:00:45]} 25. Nd4 {[%clk 0:01:09]}  Rc8 {[%clk 0:00:45]} 26. Rxc8+ {[%clk 0:00:24]}  Kxc8 {[%clk 0:00:46]} 27. Kg3 {[%clk 0:00:20]}  a6 {[%clk 0:00:40]} 28. Kf4 {[%clk 0:00:19]}  Kd8 {[%clk 0:00:36]} 29. Re3 {[%clk 0:00:09]}  Re8 {[%clk 0:00:34]} 30. Ne6+ {[%clk 0:00:09]}  Kc8 {[%clk 0:00:34]} 31. Rc3+ {[%clk 0:00:05]}  Kb8 {[%clk 0:00:35]} 32. Ng5 {[%clk 0:00:05]}  h6 {[%clk 0:00:35]} 33. Nf7 {[%clk 0:00:05]}  Re4+ {[%clk 0:00:34]} 34. Kg3 {[%clk 0:00:05]}  h5 {[%clk 0:00:33]} 35. Nd6 {[%clk 0:00:06]}  Re6 {[%clk 0:00:28]} 36. Rc8+ {[%clk 0:00:04]}  Ka7 {[%clk 0:00:28]} 37. Ne8 {[%clk 0:00:05]}  d4 {[%clk 0:00:25]} 38. Rd8 {[%clk 0:00:04]}  Nc5 {[%clk 0:00:14]} 39. Nd6 {[%clk 0:00:05]}  Rxd6 {[%clk 0:00:13]} 0-1


[Site "https://www.chess.com"]

[Event "Titled Tuesday Blitz February 21 Late 2023"]
[White "Bortnyk, Mykola"]
[Black "Nakamura, Hikaru"]
[WhiteFideId "14120836"]
[BlackFideId "2016192"]
[WhiteElo "2425"]
[BlackElo "2775"]
[Result "1/2-1/2"]
[Round "08"]
[TimeControl "180+2"]
[Date "2023.02.21"]
[WhiteClock "0:00:17"]
[BlackClock "0:00:24"]

1. e4 {[%clk 0:02:58]}  d6 {[%clk 0:02:57]} 2. d4 {[%clk 0:02:58]}  f5 {[%clk 0:02:58]} 3. Nc3 {[%clk 0:02:59]}  Nf6 {[%clk 0:02:56]} 4. Bd3 {[%clk 0:02:49]}  fxe4 {[%clk 0:02:46]} 5. Nxe4 {[%clk 0:02:50]}  g6 {[%clk 0:02:47]} 6. h4 {[%clk 0:02:41]}  d5 {[%clk 0:02:36]} 7. Nxf6+ {[%clk 0:02:33]}  exf6 {[%clk 0:02:37]} 8. h5 {[%clk 0:02:34]}  g5 {[%clk 0:02:37]} 9. Be3 {[%clk 0:02:26]}  c6 {[%clk 0:02:32]} 10. h6 {[%clk 0:02:26]}  Be6 {[%clk 0:02:30]} 11. Qe2 {[%clk 0:02:23]}  Kd7 {[%clk 0:02:17]} 12. O-O-O {[%clk 0:02:17]}  Bd6 {[%clk 0:02:17]} 13. Qd2 {[%clk 0:02:09]}  Na6 {[%clk 0:02:15]} 14. c3 {[%clk 0:02:06]}  Qf8 {[%clk 0:01:55]} 15. f4 {[%clk 0:02:04]}  gxf4 {[%clk 0:01:51]} 16. Bxf4 {[%clk 0:02:05]}  Nc7 {[%clk 0:01:48]} 17. Rf1 {[%clk 0:02:00]}  Ne8 {[%clk 0:01:41]} 18. Ne2 {[%clk 0:01:59]}  Kc7 {[%clk 0:01:38]} 19. Bxd6+ {[%clk 0:01:54]}  Nxd6 {[%clk 0:01:39]} 20. Qf4 {[%clk 0:01:52]}  f5 {[%clk 0:01:36]} 21. Qe5 {[%clk 0:01:44]}  Bd7 {[%clk 0:01:34]} 22. Nf4 {[%clk 0:01:31]}  Re8 {[%clk 0:01:30]} 23. Qg7 {[%clk 0:01:31]}  Rg8 {[%clk 0:01:25]} 24. Qxh7 {[%clk 0:00:55]}  Re7 {[%clk 0:01:23]} 25. Qg6 {[%clk 0:00:56]}  Rxg6 {[%clk 0:01:18]} 26. Nxg6 {[%clk 0:00:57]}  Qf6 {[%clk 0:01:18]} 27. Nxe7 {[%clk 0:00:57]}  Qxe7 {[%clk 0:01:19]} 28. h7 {[%clk 0:00:58]}  Qg5+ {[%clk 0:00:30]} 29. Kb1 {[%clk 0:00:56]}  Nf7 {[%clk 0:00:31]} 30. h8=Q {[%clk 0:00:55]}  Nxh8 {[%clk 0:00:31]} 31. Rxh8 {[%clk 0:00:56]}  Qxg2 {[%clk 0:00:32]} 32. Rh7 {[%clk 0:00:45]}  Kd6 {[%clk 0:00:28]} 33. Rfh1 {[%clk 0:00:40]}  f4 {[%clk 0:00:27]} 34. R1h6+ {[%clk 0:00:20]}  Be6 {[%clk 0:00:25]} 35. Bf5 {[%clk 0:00:18]}  Qf1+ {[%clk 0:00:23]} 36. Kc2 {[%clk 0:00:18]}  Qe2+ {[%clk 0:00:23]} 37. Kb3 {[%clk 0:00:15]}  Qb5+ {[%clk 0:00:23]} 38. Kc2 {[%clk 0:00:15]}  Qe2+ {[%clk 0:00:23]} 39. Kb3 {[%clk 0:00:16]}  Qb5+ {[%clk 0:00:23]} 40. Kc2 {[%clk 0:00:17]}  Qe2+ {[%clk 0:00:24]} 1/2-1/2


[Site "https://www.chess.com"]

[Event "Titled Tuesday Blitz February 21 Late 2023"]
[White "Babazada, Khazar"]
[Black "Ibarra Jerez, Jose Carlos"]
[WhiteFideId "13413554"]
[BlackFideId "2226332"]
[WhiteElo "2474"]
[BlackElo "2563"]
[Result "1-0"]
[Round "08"]
[TimeControl "180+2"]
[Date "2023.02.21"]
[WhiteClock "0:00:15"]
[BlackClock "0:00:02"]

1. Nf3 {[%clk 0:03:00]}  d6 {[%clk 0:02:59]} 2. g3 {[%clk 0:03:01]}  Nf6 {[%clk 0:02:58]} 3. Bg2 {[%clk 0:03:02]}  g6 {[%clk 0:02:58]} 4. O-O {[%clk 0:03:02]}  Bg7 {[%clk 0:02:59]} 5. d3 {[%clk 0:03:03]}  O-O {[%clk 0:02:59]} 6. Nbd2 {[%clk 0:03:04]}  c5 {[%clk 0:02:59]} 7. e4 {[%clk 0:03:04]}  Nc6 {[%clk 0:02:59]} 8. a3 {[%clk 0:03:04]}  Rb8 {[%clk 0:02:47]} 9. Rb1 {[%clk 0:03:04]}  b5 {[%clk 0:02:47]} 10. b4 {[%clk 0:03:04]}  a5 {[%clk 0:02:39]} 11. bxc5 {[%clk 0:02:55]}  dxc5 {[%clk 0:02:39]} 12. Bb2 {[%clk 0:02:56]}  Qc7 {[%clk 0:02:35]} 13. Re1 {[%clk 0:02:46]}  Rd8 {[%clk 0:02:34]} 14. e5 {[%clk 0:02:42]}  Nd5 {[%clk 0:02:32]} 15. Qe2 {[%clk 0:02:42]}  Nd4 {[%clk 0:02:09]} 16. Nxd4 {[%clk 0:01:48]}  cxd4 {[%clk 0:02:10]} 17. Bxd4 {[%clk 0:01:31]}  Nc3 {[%clk 0:01:43]} 18. Bxc3 {[%clk 0:01:15]}  Qxc3 {[%clk 0:01:44]} 19. a4 {[%clk 0:01:13]}  Qxc2 {[%clk 0:01:17]} 20. axb5 {[%clk 0:01:06]}  Bf5 {[%clk 0:00:38]} 21. Be4 {[%clk 0:00:58]}  Bxe4 {[%clk 0:00:37]} 22. Nxe4 {[%clk 0:00:57]}  Qxe2 {[%clk 0:00:29]} 23. Rxe2 {[%clk 0:00:58]}  Bxe5 {[%clk 0:00:30]} 24. b6 {[%clk 0:00:53]}  Rxd3 {[%clk 0:00:21]} 25. Nc5 {[%clk 0:00:53]}  Rd5 {[%clk 0:00:16]} 26. Rxe5 {[%clk 0:00:54]}  Rxb6 {[%clk 0:00:09]} 27. Rxd5 {[%clk 0:00:24]}  Rxb1+ {[%clk 0:00:09]} 28. Kg2 {[%clk 0:00:25]}  Rb5 {[%clk 0:00:05]} 29. Rd8+ {[%clk 0:00:25]}  Kg7 {[%clk 0:00:05]} 30. Nd3 {[%clk 0:00:26]}  Rb3 {[%clk 0:00:04]} 31. Nf4 {[%clk 0:00:25]}  Rb5 {[%clk 0:00:03]} 32. Ra8 {[%clk 0:00:26]}  e6 {[%clk 0:00:03]} 33. Ne2 {[%clk 0:00:24]}  Rc5 {[%clk 0:00:03]} 34. Nd4 {[%clk 0:00:24]}  Rc4 {[%clk 0:00:02]} 35. Nf3 {[%clk 0:00:16]}  a4 {[%clk 0:00:02]} 36. Ne5 {[%clk 0:00:16]}  Rb4 {[%clk 0:00:02]} 37. Nd3 {[%clk 0:00:16]}  Rd4 {[%clk 0:00:02]} 38. Nb2 {[%clk 0:00:15]}  Rd2 {[%clk 0:00:02]} 39. Nxa4 {[%clk 0:00:16]}  Ra2 {[%clk 0:00:03]} 40. Nb6 {[%clk 0:00:16]}  Rb2 {[%clk 0:00:03]} 41. Nc4 {[%clk 0:00:16]}  Rc2 {[%clk 0:00:03]} 42. Ne5 {[%clk 0:00:17]}  Kf6 {[%clk 0:00:03]} 43. Ng4+ {[%clk 0:00:16]}  Kg7 {[%clk 0:00:02]} 44. Ra7 {[%clk 0:00:16]}  Rc5 {[%clk 0:00:03]} 45. f4 {[%clk 0:00:16]}  Kf8 {[%clk 0:00:02]} 46. Ne5 {[%clk 0:00:16]}  Rc2+ {[%clk 0:00:03]} 47. Kh3 {[%clk 0:00:16]}  f5 {[%clk 0:00:02]} 48. Rxh7 {[%clk 0:00:14]}  Kg8 {[%clk 0:00:02]} 49. Ra7 {[%clk 0:00:14]}  Re2 {[%clk 0:00:02]} 50. Nxg6 {[%clk 0:00:14]}  e5 {[%clk 0:00:03]} 51. Nxe5 {[%clk 0:00:14]}  Rc2 {[%clk 0:00:02]} 52. Kh4 {[%clk 0:00:14]}  Rxh2+ {[%clk 0:00:02]} 53. Kg5 {[%clk 0:00:15]}  Rb2 {[%clk 0:00:02]} 54. Ra3 {[%clk 0:00:15]}  Ra2 {[%clk 0:00:02]} 55. Rxa2 {[%clk 0:00:15]} 1-0


[Site "https://www.chess.com"]

[Event "Titled Tuesday Blitz February 21 Late 2023"]
[White "Makarian, Rudik"]
[Black "Vasquez Schroeder, Rodrigo"]
[WhiteFideId "44105681"]
[BlackFideId "3400042"]
[WhiteElo "2545"]
[BlackElo "2524"]
[Result "0-1"]
[Round "08"]
[TimeControl "180+2"]
[Date "2023.02.21"]
[WhiteClock "0:00:01"]
[BlackClock "0:00:49"]

1. d4 {[%clk 0:03:00]}  d5 {[%clk 0:02:59]} 2. c4 {[%clk 0:03:00]}  c6 {[%clk 0:02:59]} 3. Nf3 {[%clk 0:02:58]}  Nf6 {[%clk 0:03:00]} 4. Nc3 {[%clk 0:02:59]}  e6 {[%clk 0:02:59]} 5. Bg5 {[%clk 0:03:00]}  dxc4 {[%clk 0:03:00]} 6. e4 {[%clk 0:03:00]}  b5 {[%clk 0:03:00]} 7. e5 {[%clk 0:03:00]}  h6 {[%clk 0:03:00]} 8. Bh4 {[%clk 0:03:01]}  g5 {[%clk 0:03:01]} 9. Nxg5 {[%clk 0:03:02]}  hxg5 {[%clk 0:03:01]} 10. Bxg5 {[%clk 0:03:03]}  Nbd7 {[%clk 0:03:02]} 11. g3 {[%clk 0:03:03]}  Bb7 {[%clk 0:03:01]} 12. Bg2 {[%clk 0:03:02]}  Qb6 {[%clk 0:03:01]} 13. exf6 {[%clk 0:03:03]}  c5 {[%clk 0:03:02]} 14. d5 {[%clk 0:03:03]}  O-O-O {[%clk 0:03:01]} 15. O-O {[%clk 0:03:04]}  b4 {[%clk 0:03:01]} 16. Rb1 {[%clk 0:03:05]}  Qa6 {[%clk 0:03:01]} 17. dxe6 {[%clk 0:03:04]}  Bxg2 {[%clk 0:03:00]} 18. e7 {[%clk 0:03:05]}  Bxf1 {[%clk 0:03:00]} 19. Kxf1 {[%clk 0:03:06]}  Qc6 {[%clk 0:02:54]} 20. Qd5 {[%clk 0:02:28]}  Qxd5 {[%clk 0:02:46]} 21. exd8=Q+ {[%clk 0:02:29]}  Kxd8 {[%clk 0:02:45]} 22. Nxd5 {[%clk 0:02:30]}  Rxh2 {[%clk 0:02:38]} 23. Kg1 {[%clk 0:02:30]}  Rh5 {[%clk 0:02:33]} 24. f4 {[%clk 0:02:28]}  Nb6 {[%clk 0:02:24]} 25. Ne3 {[%clk 0:02:13]}  Bh6 {[%clk 0:02:12]} 26. Rd1+ {[%clk 0:01:56]}  Kc7 {[%clk 0:02:06]} 27. g4 {[%clk 0:01:46]}  Rxg5 {[%clk 0:02:05]} 28. fxg5 {[%clk 0:01:41]}  Bxg5 {[%clk 0:02:06]} 29. Kf2 {[%clk 0:00:44]}  Kc6 {[%clk 0:02:03]} 30. b3 {[%clk 0:00:38]}  c3 {[%clk 0:02:00]} 31. Ke2 {[%clk 0:00:37]}  Bxf6 {[%clk 0:01:30]} 32. Rf1 {[%clk 0:00:36]}  Nd7 {[%clk 0:01:30]} 33. Nc4 {[%clk 0:00:32]}  Bg5 {[%clk 0:01:20]} 34. Kd3 {[%clk 0:00:27]}  f6 {[%clk 0:01:20]} 35. Re1 {[%clk 0:00:26]}  Kd5 {[%clk 0:01:18]} 36. Re7 {[%clk 0:00:24]}  Ne5+ {[%clk 0:01:17]} 37. Nxe5 {[%clk 0:00:23]}  fxe5 {[%clk 0:01:17]} 38. Rd7+ {[%clk 0:00:23]}  Ke6 {[%clk 0:01:14]} 39. Rxa7 {[%clk 0:00:23]}  e4+ {[%clk 0:01:15]} 40. Kc2 {[%clk 0:00:22]}  e3 {[%clk 0:01:15]} 41. Ra6+ {[%clk 0:00:11]}  Ke5 {[%clk 0:01:10]} 42. Ra8 {[%clk 0:00:11]}  Ke4 {[%clk 0:01:03]} 43. a4 {[%clk 0:00:10]}  Bf4 {[%clk 0:00:54]} 44. Re8+ {[%clk 0:00:09]}  Be5 {[%clk 0:00:54]} 45. Kd1 {[%clk 0:00:05]}  c4 {[%clk 0:00:49]} 46. a5 {[%clk 0:00:01]}  cxb3 {[%clk 0:00:48]} 47. a6 {[%clk 0:00:02]}  c2+ {[%clk 0:00:48]} 48. Kc1 {[%clk 0:00:02]}  e2 {[%clk 0:00:48]} 49. Kd2 {[%clk 0:00:01]}  e1=Q+ {[%clk 0:00:49]} 0-1


[Site "https://www.chess.com"]

[Event "Titled Tuesday Blitz February 21 Late 2023"]
[White "Florescu, Codrut-Constantin"]
[Black "Chigaev, Maksim"]
[WhiteFideId "1202200"]
[BlackFideId "4108116"]
[WhiteElo "2259"]
[BlackElo "2628"]
[Result "0-1"]
[Round "08"]
[TimeControl "180+2"]
[Date "2023.02.21"]
[WhiteClock "0:00:02"]
[BlackClock "0:00:36"]

1. e4 {[%clk 0:03:00]}  c5 {[%clk 0:02:58]} 2. Nf3 {[%clk 0:03:00]}  e6 {[%clk 0:02:58]} 3. d4 {[%clk 0:03:01]}  cxd4 {[%clk 0:02:59]} 4. Nxd4 {[%clk 0:03:01]}  Nf6 {[%clk 0:02:59]} 5. Nc3 {[%clk 0:03:01]}  Nc6 {[%clk 0:03:00]} 6. Ndb5 {[%clk 0:03:01]}  d6 {[%clk 0:02:59]} 7. Bf4 {[%clk 0:03:00]}  e5 {[%clk 0:02:59]} 8. Bg5 {[%clk 0:03:00]}  a6 {[%clk 0:03:00]} 9. Na3 {[%clk 0:02:59]}  b5 {[%clk 0:03:00]} 10. Nd5 {[%clk 0:02:59]}  Be7 {[%clk 0:02:59]} 11. Bxf6 {[%clk 0:03:00]}  Bxf6 {[%clk 0:03:00]} 12. c3 {[%clk 0:03:00]}  Ne7 {[%clk 0:03:00]} 13. Nxf6+ {[%clk 0:02:57]}  gxf6 {[%clk 0:03:01]} 14. Bd3 {[%clk 0:02:50]}  Bb7 {[%clk 0:02:59]} 15. Nc2 {[%clk 0:02:49]}  d5 {[%clk 0:02:48]} 16. Qe2 {[%clk 0:02:37]}  f5 {[%clk 0:02:48]} 17. O-O-O {[%clk 0:02:16]}  fxe4 {[%clk 0:02:16]} 18. Bxe4 {[%clk 0:02:10]}  Qc7 {[%clk 0:02:17]} 19. Bf3 {[%clk 0:01:58]}  O-O-O {[%clk 0:02:16]} 20. Rhe1 {[%clk 0:01:51]}  f6 {[%clk 0:02:15]} 21. Bg4+ {[%clk 0:01:46]}  Kb8 {[%clk 0:02:15]} 22. f4 {[%clk 0:01:26]}  Nc6 {[%clk 0:01:57]} 23. fxe5 {[%clk 0:01:20]}  fxe5 {[%clk 0:01:58]} 24. Kb1 {[%clk 0:01:16]}  Rhe8 {[%clk 0:01:53]} 25. Bf5 {[%clk 0:01:12]}  Re7 {[%clk 0:01:45]} 26. g4 {[%clk 0:01:11]}  Na5 {[%clk 0:01:26]} 27. Nb4 {[%clk 0:01:00]}  Nc4 {[%clk 0:01:25]} 28. b3 {[%clk 0:00:43]}  Nb6 {[%clk 0:01:20]} 29. Kb2 {[%clk 0:00:41]}  a5 {[%clk 0:00:49]} 30. Nc2 {[%clk 0:00:32]}  b4 {[%clk 0:00:46]} 31. cxb4 {[%clk 0:00:28]}  a4 {[%clk 0:00:43]} 32. Na3 {[%clk 0:00:20]}  d4 {[%clk 0:00:38]} 33. Rc1 {[%clk 0:00:18]}  Qd6 {[%clk 0:00:39]} 34. Qb5 {[%clk 0:00:10]}  d3 {[%clk 0:00:35]} 35. Red1 {[%clk 0:00:02]}  e4 {[%clk 0:00:36]} 0-1


[Site "https://www.chess.com"]

[Event "Titled Tuesday Blitz February 21 Late 2023"]
[White "Nihal Sarin"]
[Black "Rustemov, Alexander"]
[WhiteFideId "25092340"]
[BlackFideId "4119002"]
[WhiteElo "2673"]
[BlackElo "2525"]
[Result "1-0"]
[Round "08"]
[TimeControl "180+2"]
[Date "2023.02.21"]
[WhiteClock "0:01:09"]
[BlackClock "0:00:22"]

1. Nf3 {[%clk 0:02:56]}  d5 {[%clk 0:02:59]} 2. e3 {[%clk 0:02:56]}  Nf6 {[%clk 0:02:58]} 3. c4 {[%clk 0:02:56]}  c6 {[%clk 0:02:56]} 4. d4 {[%clk 0:02:54]}  Bf5 {[%clk 0:02:54]} 5. Nh4 {[%clk 0:02:51]}  Bg6 {[%clk 0:02:51]} 6. Nd2 {[%clk 0:02:49]}  e6 {[%clk 0:02:51]} 7. g3 {[%clk 0:02:42]}  Be7 {[%clk 0:02:46]} 8. Nxg6 {[%clk 0:02:41]}  hxg6 {[%clk 0:02:46]} 9. Bg2 {[%clk 0:02:42]}  Nbd7 {[%clk 0:02:45]} 10. O-O {[%clk 0:02:43]}  O-O {[%clk 0:02:44]} 11. e4 {[%clk 0:02:41]}  dxe4 {[%clk 0:02:40]} 12. Nxe4 {[%clk 0:02:42]}  Nxe4 {[%clk 0:02:39]} 13. Bxe4 {[%clk 0:02:43]}  Nf6 {[%clk 0:02:34]} 14. Bg2 {[%clk 0:02:41]}  a5 {[%clk 0:02:27]} 15. Be3 {[%clk 0:02:39]}  a4 {[%clk 0:02:26]} 16. Qc2 {[%clk 0:02:39]}  Qa5 {[%clk 0:02:25]} 17. Rad1 {[%clk 0:02:37]}  Rfd8 {[%clk 0:02:25]} 18. Rd3 {[%clk 0:02:36]}  a3 {[%clk 0:02:21]} 19. bxa3 {[%clk 0:02:25]}  Bxa3 {[%clk 0:02:19]} 20. Rb1 {[%clk 0:02:25]}  Rd7 {[%clk 0:02:12]} 21. Rdb3 {[%clk 0:02:25]}  Qa6 {[%clk 0:01:58]} 22. Bf1 {[%clk 0:02:16]}  Be7 {[%clk 0:01:52]} 23. a3 {[%clk 0:02:12]}  Ne8 {[%clk 0:01:40]} 24. d5 {[%clk 0:02:09]}  exd5 {[%clk 0:01:04]} 25. cxd5 {[%clk 0:02:10]}  Qa4 {[%clk 0:01:04]} 26. dxc6 {[%clk 0:02:09]}  Qxc6 {[%clk 0:01:02]} 27. Qxc6 {[%clk 0:01:32]}  bxc6 {[%clk 0:01:03]} 28. Bg2 {[%clk 0:01:33]}  Rxa3 {[%clk 0:01:01]} 29. Rb8 {[%clk 0:01:11]}  Kf8 {[%clk 0:00:25]} 30. Bxc6 {[%clk 0:01:07]}  Rd8 {[%clk 0:00:25]} 31. Rxd8 {[%clk 0:01:06]}  Bxd8 {[%clk 0:00:25]} 32. Bc5+ {[%clk 0:01:07]}  Be7 {[%clk 0:00:23]} 33. Bxa3 {[%clk 0:01:08]}  Bxa3 {[%clk 0:00:22]} 34. Rb8 {[%clk 0:01:09]} 1-0


[Site "https://www.chess.com"]

[Event "Titled Tuesday Blitz February 21 Late 2023"]
[White "Sarana, Alexey"]
[Black "Gorshtein, Ido"]
[WhiteFideId "24133795"]
[BlackFideId "2815532"]
[WhiteElo "2685"]
[BlackElo "2514"]
[Result "1-0"]
[Round "08"]
[TimeControl "180+2"]
[Date "2023.02.21"]
[WhiteClock "0:00:03"]
[BlackClock "0:00:01"]

1. c4 {[%clk 0:03:00]}  Nf6 {[%clk 0:02:55]} 2. Nc3 {[%clk 0:03:00]}  g6 {[%clk 0:02:55]} 3. e4 {[%clk 0:02:59]}  d6 {[%clk 0:02:54]} 4. d4 {[%clk 0:02:59]}  Bg7 {[%clk 0:02:54]} 5. Be2 {[%clk 0:02:59]}  O-O {[%clk 0:02:54]} 6. Be3 {[%clk 0:02:59]}  Nc6 {[%clk 0:02:54]} 7. Nf3 {[%clk 0:02:54]}  Ng4 {[%clk 0:02:51]} 8. Bg5 {[%clk 0:02:54]}  h6 {[%clk 0:02:50]} 9. Bh4 {[%clk 0:02:54]}  Nf6 {[%clk 0:02:36]} 10. d5 {[%clk 0:02:49]}  Nb8 {[%clk 0:02:32]} 11. h3 {[%clk 0:02:39]}  Nbd7 {[%clk 0:02:28]} 12. Nd4 {[%clk 0:02:36]}  Nc5 {[%clk 0:02:20]} 13. Bf3 {[%clk 0:02:31]}  e5 {[%clk 0:02:15]} 14. Nb3 {[%clk 0:02:17]}  b6 {[%clk 0:02:13]} 15. Nxc5 {[%clk 0:02:13]}  bxc5 {[%clk 0:02:12]} 16. Qd2 {[%clk 0:02:12]}  Bd7 {[%clk 0:02:11]} 17. Qd3 {[%clk 0:02:04]}  Qb8 {[%clk 0:02:05]} 18. b3 {[%clk 0:02:02]}  Nh7 {[%clk 0:02:04]} 19. Bg4 {[%clk 0:01:56]}  f5 {[%clk 0:02:00]} 20. exf5 {[%clk 0:01:53]}  gxf5 {[%clk 0:01:53]} 21. Bh5 {[%clk 0:01:46]}  e4 {[%clk 0:01:47]} 22. Qc2 {[%clk 0:01:46]}  Qb4 {[%clk 0:01:46]} 23. Rc1 {[%clk 0:01:46]}  Be8 {[%clk 0:01:29]} 24. Bd1 {[%clk 0:01:43]}  Bg6 {[%clk 0:01:28]} 25. O-O {[%clk 0:01:42]}  Rae8 {[%clk 0:01:21]} 26. Nb5 {[%clk 0:01:40]}  Qa5 {[%clk 0:01:14]} 27. f4 {[%clk 0:01:38]}  exf3 {[%clk 0:01:10]} 28. Bxf3 {[%clk 0:01:36]}  Ng5 {[%clk 0:01:08]} 29. Kh1 {[%clk 0:01:28]}  a6 {[%clk 0:01:03]} 30. Nc3 {[%clk 0:01:25]}  Kh7 {[%clk 0:01:01]} 31. Ne2 {[%clk 0:01:15]}  f4 {[%clk 0:00:59]} 32. Qd1 {[%clk 0:01:14]}  Qxa2 {[%clk 0:00:52]} 33. Nc3 {[%clk 0:00:54]}  Qb2 {[%clk 0:00:50]} 34. Bxg5 {[%clk 0:00:47]}  hxg5 {[%clk 0:00:48]} 35. Ne2 {[%clk 0:00:47]}  Re3 {[%clk 0:00:45]} 36. Ng1 {[%clk 0:00:45]}  Qxb3 {[%clk 0:00:41]} 37. Qd2 {[%clk 0:00:45]}  Rfe8 {[%clk 0:00:37]} 38. Qa5 {[%clk 0:00:44]}  Qb6 {[%clk 0:00:36]} 39. Qa4 {[%clk 0:00:44]}  Bf5 {[%clk 0:00:31]} 40. Bg4 {[%clk 0:00:42]}  Bxg4 {[%clk 0:00:30]} 41. hxg4 {[%clk 0:00:43]}  Bf6 {[%clk 0:00:27]} 42. Rb1 {[%clk 0:00:37]}  Qa7 {[%clk 0:00:25]} 43. Qc6 {[%clk 0:00:28]}  Kg6 {[%clk 0:00:20]} 44. Nf3 {[%clk 0:00:18]}  Rh8+ {[%clk 0:00:21]} 45. Kg1 {[%clk 0:00:19]}  Qa8 {[%clk 0:00:12]} 46. Qxc7 {[%clk 0:00:17]}  Qe8 {[%clk 0:00:11]} 47. Qxd6 {[%clk 0:00:13]}  Rxf3 {[%clk 0:00:07]} 48. Rxf3 {[%clk 0:00:13]}  Qe4 {[%clk 0:00:06]} 49. Rd1 {[%clk 0:00:05]}  Qe2 {[%clk 0:00:05]} 50. Rdf1 {[%clk 0:00:04]}  Rh4 {[%clk 0:00:05]} 51. R3f2 {[%clk 0:00:03]}  Qe3 {[%clk 0:00:04]} 52. Rd1 {[%clk 0:00:01]}  Rxg4 {[%clk 0:00:03]} 53. Qe6 {[%clk 0:00:01]}  Qg3 {[%clk 0:00:02]} 54. Qe4+ {[%clk 0:00:01]}  Kg7 {[%clk 0:00:02]} 55. d6 {[%clk 0:00:02]}  f3 {[%clk 0:00:02]} 56. Qxf3 {[%clk 0:00:02]}  Qxf3 {[%clk 0:00:01]} 57. Rxf3 {[%clk 0:00:03]} 1-0


[Site "https://www.chess.com"]